[Event "Titled Tuesday Blitz January 04 2022"]
[White "Vokhidov, Shamsiddin"]
[Black "Kim, Sergey"]
[WhiteFideId "14204223"]
[BlackFideId "13700570"]
[WhiteElo "2611"]
[BlackElo "2606"]
[Result "1-0"]
[Round "03"]
[TimeControl "180+1"]
[Date "2022.01.04"]
[WhiteClock "0:00:24"]
[BlackClock "0:00:01"]

1. e4 {[%clk 0:03:00]}  e5 {[%clk 0:02:59]} 2. Nf3 {[%clk 0:03:00]}  Nc6 {[%clk 0:02:59]} 3. Nc3 {[%clk 0:03:01]}  Nf6 {[%clk 0:02:58]} 4. Be2 {[%clk 0:03:02]}  g6 {[%clk 0:02:57]} 5. d4 {[%clk 0:03:02]}  exd4 {[%clk 0:02:57]} 6. Nxd4 {[%clk 0:03:02]}  d6 {[%clk 0:02:57]} 7. Bg5 {[%clk 0:03:02]}  h6 {[%clk 0:02:54]} 8. Bh4 {[%clk 0:03:03]}  Bg7 {[%clk 0:02:53]} 9. Nxc6 {[%clk 0:03:02]}  bxc6 {[%clk 0:02:52]} 10. e5 {[%clk 0:03:03]}  dxe5 {[%clk 0:02:45]} 11. Qxd8+ {[%clk 0:03:04]}  Kxd8 {[%clk 0:02:44]} 12. O-O-O+ {[%clk 0:03:05]}  Ke7 {[%clk 0:02:42]} 13. Bf3 {[%clk 0:03:05]}  Be6 {[%clk 0:02:34]} 14. Bxc6 {[%clk 0:03:02]}  Rad8 {[%clk 0:02:34]} 15. f3 {[%clk 0:03:02]}  Rd6 {[%clk 0:02:21]} 16. Rxd6 {[%clk 0:02:51]}  cxd6 {[%clk 0:02:20]} 17. Rd1 {[%clk 0:02:50]}  g5 {[%clk 0:02:19]} 18. Bf2 {[%clk 0:02:49]}  Rc8 {[%clk 0:02:10]} 19. Nd5+ {[%clk 0:02:18]}  Nxd5 {[%clk 0:02:05]} 20. Bxd5 {[%clk 0:02:19]}  Bxd5 {[%clk 0:02:05]} 21. Rxd5 {[%clk 0:02:18]}  a6 {[%clk 0:01:58]} 22. c3 {[%clk 0:02:07]}  Ke6 {[%clk 0:01:52]} 23. Ra5 {[%clk 0:02:06]}  Rc6 {[%clk 0:01:52]} 24. Kc2 {[%clk 0:02:05]}  d5 {[%clk 0:01:52]} 25. Bc5 {[%clk 0:02:05]}  Bf6 {[%clk 0:01:46]} 26. b4 {[%clk 0:02:03]}  Bd8 {[%clk 0:01:38]} 27. Ra3 {[%clk 0:02:03]}  f5 {[%clk 0:01:36]} 28. Rb3 {[%clk 0:02:00]}  Bb6 {[%clk 0:01:30]} 29. Bxb6 {[%clk 0:01:59]}  Rxb6 {[%clk 0:01:30]} 30. a4 {[%clk 0:01:58]}  Kd6 {[%clk 0:01:30]} 31. Kd3 {[%clk 0:01:55]}  e4+ {[%clk 0:01:27]} 32. Kd4 {[%clk 0:01:55]}  Rc6 {[%clk 0:01:26]} 33. b5 {[%clk 0:01:51]}  Rc4+ {[%clk 0:01:20]} 34. Ke3 {[%clk 0:01:51]}  f4+ {[%clk 0:01:17]} 35. Kd2 {[%clk 0:01:51]}  e3+ {[%clk 0:01:10]} 36. Kd3 {[%clk 0:01:50]}  Rxa4 {[%clk 0:00:36]} 37. b6 {[%clk 0:01:44]}  Ra2 {[%clk 0:00:36]} 38. c4 {[%clk 0:01:43]}  Kc5 {[%clk 0:00:36]} 39. cxd5 {[%clk 0:01:40]}  Rd2+ {[%clk 0:00:29]} 40. Kc3 {[%clk 0:01:40]}  Rd1 {[%clk 0:00:23]} 41. Rb2 {[%clk 0:01:34]}  e2 {[%clk 0:00:18]} 42. Rxe2 {[%clk 0:01:33]}  Kxb6 {[%clk 0:00:18]} 43. Kc4 {[%clk 0:01:27]}  Rc1+ {[%clk 0:00:16]} 44. Kd4 {[%clk 0:01:27]}  Rd1+ {[%clk 0:00:16]} 45. Ke5 {[%clk 0:01:27]}  a5 {[%clk 0:00:14]} 46. Ke6 {[%clk 0:01:24]}  a4 {[%clk 0:00:13]} 47. d6 {[%clk 0:01:23]}  a3 {[%clk 0:00:13]} 48. d7 {[%clk 0:01:12]}  Kc7 {[%clk 0:00:07]} 49. Rc2+ {[%clk 0:01:11]}  Kb7 {[%clk 0:00:07]} 50. g3 {[%clk 0:00:57]}  Re1+ {[%clk 0:00:05]} 51. Kf6 {[%clk 0:00:55]}  Rd1 {[%clk 0:00:05]} 52. gxf4 {[%clk 0:00:49]}  Rxd7 {[%clk 0:00:03]} 53. f5 {[%clk 0:00:45]}  Rd3 {[%clk 0:00:02]} 54. Kg7 {[%clk 0:00:39]}  Rxf3 {[%clk 0:00:02]} 55. f6 {[%clk 0:00:39]}  g4 {[%clk 0:00:01]} 56. f7 {[%clk 0:00:38]}  Kb6 {[%clk 0:00:01]} 57. Rc3 {[%clk 0:00:24]} 1-0


[Site "https://www.chess.com"]

[Event "Titled Tuesday Blitz January 04 2022"]
[White "Yanchenko, Roman"]
[Black "Theodorou, Nikolas"]
[WhiteFideId "4137329"]
[BlackFideId "4262875"]
[WhiteElo "2514"]
[BlackElo "2472"]
[Result "0-1"]
[Round "03"]
[TimeControl "180+1"]
[Date "2022.01.04"]
[WhiteClock "0:00:11"]
[BlackClock "0:00:06"]

1. d4 {[%clk 0:03:00]}  Nf6 {[%clk 0:02:59]} 2. c4 {[%clk 0:03:00]}  g6 {[%clk 0:03:00]} 3. Nf3 {[%clk 0:03:01]}  Bg7 {[%clk 0:03:01]} 4. Nc3 {[%clk 0:03:01]}  O-O {[%clk 0:03:01]} 5. Bf4 {[%clk 0:03:01]}  d6 {[%clk 0:02:59]} 6. e3 {[%clk 0:03:02]}  Nc6 {[%clk 0:02:59]} 7. Be2 {[%clk 0:03:02]}  Nd7 {[%clk 0:03:00]} 8. O-O {[%clk 0:03:02]}  e5 {[%clk 0:03:00]} 9. Bg3 {[%clk 0:03:02]}  f5 {[%clk 0:03:01]} 10. dxe5 {[%clk 0:03:02]}  dxe5 {[%clk 0:03:00]} 11. Bh4 {[%clk 0:03:02]}  Bf6 {[%clk 0:02:53]} 12. Bxf6 {[%clk 0:03:01]}  Nxf6 {[%clk 0:02:54]} 13. Qxd8 {[%clk 0:02:48]}  Rxd8 {[%clk 0:02:55]} 14. Rfd1 {[%clk 0:02:41]}  Be6 {[%clk 0:02:52]} 15. Ng5 {[%clk 0:02:41]}  Bf7 {[%clk 0:02:53]} 16. Nb5 {[%clk 0:02:39]}  Rxd1+ {[%clk 0:02:49]} 17. Rxd1 {[%clk 0:02:39]}  Rc8 {[%clk 0:02:50]} 18. Nxf7 {[%clk 0:02:32]}  Kxf7 {[%clk 0:02:51]} 19. c5 {[%clk 0:02:33]}  Ke7 {[%clk 0:02:50]} 20. a3 {[%clk 0:02:31]}  Ne4 {[%clk 0:02:48]} 21. Rc1 {[%clk 0:02:20]}  a6 {[%clk 0:02:30]} 22. f3 {[%clk 0:02:14]}  Nd2 {[%clk 0:01:26]} 23. Nc3 {[%clk 0:02:10]}  Rd8 {[%clk 0:01:27]} 24. b4 {[%clk 0:01:20]}  e4 {[%clk 0:01:27]} 25. f4 {[%clk 0:01:12]}  a5 {[%clk 0:01:18]} 26. b5 {[%clk 0:01:11]}  Nb8 {[%clk 0:01:18]} 27. Rd1 {[%clk 0:01:10]}  c6 {[%clk 0:01:14]} 28. Na4 {[%clk 0:00:54]}  cxb5 {[%clk 0:01:08]} 29. Nb6 {[%clk 0:00:48]}  b4 {[%clk 0:01:08]} 30. axb4 {[%clk 0:00:46]}  axb4 {[%clk 0:01:09]} 31. Kf2 {[%clk 0:00:46]}  Nb3 {[%clk 0:00:48]} 32. Rb1 {[%clk 0:00:45]}  Nxc5 {[%clk 0:00:47]} 33. Rxb4 {[%clk 0:00:43]}  Nc6 {[%clk 0:00:41]} 34. Rb5 {[%clk 0:00:42]}  Nd3+ {[%clk 0:00:28]} 35. Bxd3 {[%clk 0:00:37]}  Rxd3 {[%clk 0:00:29]} 36. Nc4 {[%clk 0:00:34]}  Nd8 {[%clk 0:00:29]} 37. h3 {[%clk 0:00:28]}  Rc3 {[%clk 0:00:29]} 38. Na5 {[%clk 0:00:28]}  Rc2+ {[%clk 0:00:29]} 39. Kf1 {[%clk 0:00:27]}  Rc7 {[%clk 0:00:28]} 40. Kf2 {[%clk 0:00:27]}  Kd7 {[%clk 0:00:28]} 41. g4 {[%clk 0:00:26]}  Ke6 {[%clk 0:00:27]} 42. Rb6+ {[%clk 0:00:25]}  Kf7 {[%clk 0:00:26]} 43. gxf5 {[%clk 0:00:20]}  gxf5 {[%clk 0:00:26]} 44. Rb5 {[%clk 0:00:20]}  Kf6 {[%clk 0:00:25]} 45. Nb3 {[%clk 0:00:19]}  Ne6 {[%clk 0:00:25]} 46. Rb6 {[%clk 0:00:18]}  Rc2+ {[%clk 0:00:22]} 47. Kg3 {[%clk 0:00:18]}  Rb2 {[%clk 0:00:12]} 48. h4 {[%clk 0:00:14]}  h6 {[%clk 0:00:06]} 49. h5 {[%clk 0:00:14]}  Ke7 {[%clk 0:00:07]} 50. Rxb7+ {[%clk 0:00:13]}  Kd6 {[%clk 0:00:07]} 51. Rb6+ {[%clk 0:00:14]}  Kd5 {[%clk 0:00:08]} 52. Rb5+ {[%clk 0:00:13]}  Kc4 {[%clk 0:00:06]} 53. Re5 {[%clk 0:00:13]}  Rxb3 {[%clk 0:00:07]} 54. Rxe6 {[%clk 0:00:13]}  Rxe3+ {[%clk 0:00:07]} 55. Kg2 {[%clk 0:00:13]}  Rf3 {[%clk 0:00:03]} 56. Rc6+ {[%clk 0:00:14]}  Kd4 {[%clk 0:00:03]} 57. Rxh6 {[%clk 0:00:14]}  Rxf4 {[%clk 0:00:04]} 58. Rg6 {[%clk 0:00:15]}  Rh4 {[%clk 0:00:04]} 59. h6 {[%clk 0:00:15]}  f4 {[%clk 0:00:04]} 60. Kf2 {[%clk 0:00:13]}  Rh2+ {[%clk 0:00:04]} 61. Kg1 {[%clk 0:00:14]}  Rh5 {[%clk 0:00:05]} 62. Kf2 {[%clk 0:00:14]}  Rh3 {[%clk 0:00:04]} 63. Kg2 {[%clk 0:00:14]}  Rh4 {[%clk 0:00:04]} 64. Kf2 {[%clk 0:00:14]}  Ke5 {[%clk 0:00:05]} 65. Ra6 {[%clk 0:00:14]}  Rh2+ {[%clk 0:00:05]} 66. Kg1 {[%clk 0:00:14]}  Rh4 {[%clk 0:00:05]} 67. Kg2 {[%clk 0:00:14]}  Kf5 {[%clk 0:00:05]} 68. Rb6 {[%clk 0:00:13]}  Kg5 {[%clk 0:00:05]} 69. Re6 {[%clk 0:00:13]}  e3 {[%clk 0:00:03]} 70. Kf3 {[%clk 0:00:13]}  Rh3+ {[%clk 0:00:03]} 71. Ke4 {[%clk 0:00:12]}  e2 {[%clk 0:00:03]} 72. Kd4 {[%clk 0:00:12]}  Re3 {[%clk 0:00:03]} 73. Rxe3 {[%clk 0:00:11]}  fxe3 {[%clk 0:00:04]} 74. h7 {[%clk 0:00:12]}  e1=Q {[%clk 0:00:04]} 75. Ke4 {[%clk 0:00:11]}  Qa1 {[%clk 0:00:05]} 76. h8=Q {[%clk 0:00:11]}  Qxh8 {[%clk 0:00:05]} 77. Kxe3 {[%clk 0:00:11]}  Kg6 {[%clk 0:00:06]} 0-1


[Site "https://www.chess.com"]

[Event "Titled Tuesday Blitz January 04 2022"]
[White "Azadaliyev, Jahandar"]
[Black "Xiong, Jeffery"]
[WhiteFideId "13425811"]
[BlackFideId "2047640"]
[WhiteElo "1795"]
[BlackElo "2727"]
[Result "0-1"]
[Round "04"]
[TimeControl "180+1"]
[Date "2022.01.04"]
[WhiteClock "0:00:06"]
[BlackClock "0:00:10"]

1. d4 {[%clk 0:03:00]}  d5 {[%clk 0:02:59]} 2. c4 {[%clk 0:03:01]}  dxc4 {[%clk 0:03:00]} 3. e4 {[%clk 0:03:00]}  b5 {[%clk 0:03:00]} 4. a4 {[%clk 0:02:59]}  c6 {[%clk 0:03:00]} 5. axb5 {[%clk 0:02:55]}  cxb5 {[%clk 0:03:01]} 6. b3 {[%clk 0:02:53]}  e5 {[%clk 0:02:53]} 7. bxc4 {[%clk 0:02:41]}  Bb4+ {[%clk 0:02:31]} 8. Bd2 {[%clk 0:01:54]}  Qxd4 {[%clk 0:02:31]} 9. Ra2 {[%clk 0:01:47]}  Bc5 {[%clk 0:02:14]} 10. Qf3 {[%clk 0:01:26]}  Bg4 {[%clk 0:02:07]} 11. Qe3 {[%clk 0:00:58]}  Qxe3+ {[%clk 0:02:07]} 12. Bxe3 {[%clk 0:00:59]}  Bxe3 {[%clk 0:02:07]} 13. fxe3 {[%clk 0:01:00]}  Be6 {[%clk 0:01:42]} 14. Nc3 {[%clk 0:00:57]}  bxc4 {[%clk 0:01:26]} 15. Nd5 {[%clk 0:00:40]}  Bxd5 {[%clk 0:01:14]} 16. exd5 {[%clk 0:00:41]}  Nf6 {[%clk 0:01:15]} 17. Bxc4 {[%clk 0:00:40]}  Ke7 {[%clk 0:01:11]} 18. Nf3 {[%clk 0:00:38]}  Kd6 {[%clk 0:00:54]} 19. O-O {[%clk 0:00:32]}  Rc8 {[%clk 0:00:54]} 20. Rc1 {[%clk 0:00:31]}  h6 {[%clk 0:00:41]} 21. Nd2 {[%clk 0:00:25]}  a5 {[%clk 0:00:34]} 22. Rb1 {[%clk 0:00:20]}  Nbd7 {[%clk 0:00:34]} 23. Rb7 {[%clk 0:00:19]}  a4 {[%clk 0:00:26]} 24. Rb4 {[%clk 0:00:18]}  Nc5 {[%clk 0:00:22]} 25. Rb6+ {[%clk 0:00:17]}  Ke7 {[%clk 0:00:23]} 26. d6+ {[%clk 0:00:17]}  Kf8 {[%clk 0:00:23]} 27. Nf3 {[%clk 0:00:17]}  Nfd7 {[%clk 0:00:24]} 28. Rb5 {[%clk 0:00:17]}  Rab8 {[%clk 0:00:19]} 29. Rxb8 {[%clk 0:00:16]}  Rxb8 {[%clk 0:00:20]} 30. Nd2 {[%clk 0:00:13]}  Rb6 {[%clk 0:00:20]} 31. e4 {[%clk 0:00:12]}  Rxd6 {[%clk 0:00:20]} 32. Bd5 {[%clk 0:00:11]}  Nb6 {[%clk 0:00:20]} 33. Rb2 {[%clk 0:00:09]}  Nxd5 {[%clk 0:00:20]} 34. Nc4 {[%clk 0:00:10]}  Rd8 {[%clk 0:00:18]} 35. exd5 {[%clk 0:00:10]}  Rxd5 {[%clk 0:00:19]} 36. Rb8+ {[%clk 0:00:10]}  Ke7 {[%clk 0:00:20]} 37. Rb5 {[%clk 0:00:09]}  Ke6 {[%clk 0:00:19]} 38. Ne3 {[%clk 0:00:08]}  Rd3 {[%clk 0:00:13]} 39. Rb6+ {[%clk 0:00:08]}  Rd6 {[%clk 0:00:13]} 40. Rb5 {[%clk 0:00:06]}  Rc6 {[%clk 0:00:13]} 41. Ra5 {[%clk 0:00:06]}  f5 {[%clk 0:00:11]} 42. g3 {[%clk 0:00:06]}  g5 {[%clk 0:00:11]} 43. Kg2 {[%clk 0:00:05]}  f4 {[%clk 0:00:10]} 44. gxf4 {[%clk 0:00:06]}  gxf4 {[%clk 0:00:11]} 45. Nc2 {[%clk 0:00:06]}  Kd6 {[%clk 0:00:10]} 46. Nb4 {[%clk 0:00:06]}  Rb6 {[%clk 0:00:10]} 0-1


[Site "https://www.chess.com"]

[Event "Titled Tuesday Blitz January 04 2022"]
[White "Bulmaga, Irina"]
[Black "Karacsonyi, Gellert"]
[WhiteFideId "13903063"]
[BlackFideId "764620"]
[WhiteElo "2184"]
[BlackElo "2215"]
[Result "0-1"]
[Round "04"]
[TimeControl "180+1"]
[Date "2022.01.04"]
[WhiteClock "0:00:10"]
[BlackClock "0:00:07"]

1. e4 {[%clk 0:03:00]}  c5 {[%clk 0:02:59]} 2. Be2 {[%clk 0:03:00]}  Nc6 {[%clk 0:02:59]} 3. f4 {[%clk 0:03:01]}  g6 {[%clk 0:02:59]} 4. Nf3 {[%clk 0:03:01]}  Bg7 {[%clk 0:02:59]} 5. O-O {[%clk 0:03:02]}  d6 {[%clk 0:02:59]} 6. c3 {[%clk 0:03:02]}  e6 {[%clk 0:03:00]} 7. d4 {[%clk 0:03:02]}  cxd4 {[%clk 0:02:59]} 8. cxd4 {[%clk 0:03:03]}  Nge7 {[%clk 0:02:58]} 9. Be3 {[%clk 0:03:00]}  d5 {[%clk 0:02:57]} 10. e5 {[%clk 0:03:00]}  Nf5 {[%clk 0:02:57]} 11. Bf2 {[%clk 0:03:00]}  h5 {[%clk 0:02:57]} 12. g3 {[%clk 0:02:59]}  Bd7 {[%clk 0:02:56]} 13. Nc3 {[%clk 0:02:59]}  a6 {[%clk 0:02:55]} 14. Qd2 {[%clk 0:02:57]}  Rc8 {[%clk 0:02:53]} 15. Rac1 {[%clk 0:02:57]}  b5 {[%clk 0:02:46]} 16. b3 {[%clk 0:02:54]}  Qb6 {[%clk 0:02:44]} 17. Kg2 {[%clk 0:02:53]}  Rc7 {[%clk 0:02:29]} 18. h3 {[%clk 0:02:53]}  Nh6 {[%clk 0:02:14]} 19. Ng5 {[%clk 0:02:49]}  O-O {[%clk 0:01:59]} 20. g4 {[%clk 0:02:40]}  hxg4 {[%clk 0:01:40]} 21. hxg4 {[%clk 0:02:41]}  Rfc8 {[%clk 0:01:40]} 22. Be3 {[%clk 0:02:32]}  Ne7 {[%clk 0:01:39]} 23. Nb1 {[%clk 0:02:28]}  Rxc1 {[%clk 0:01:25]} 24. Rxc1 {[%clk 0:02:29]}  Rxc1 {[%clk 0:01:24]} 25. Qxc1 {[%clk 0:02:29]}  f6 {[%clk 0:01:19]} 26. Nh3 {[%clk 0:02:20]}  Nf7 {[%clk 0:01:10]} 27. Kf3 {[%clk 0:02:04]}  Qc6 {[%clk 0:01:03]} 28. Qxc6 {[%clk 0:02:01]}  Nxc6 {[%clk 0:01:04]} 29. Nf2 {[%clk 0:01:53]}  g5 {[%clk 0:01:02]} 30. fxg5 {[%clk 0:01:43]}  fxe5 {[%clk 0:01:01]} 31. dxe5 {[%clk 0:01:35]}  Nfxe5+ {[%clk 0:01:00]} 32. Kg3 {[%clk 0:01:32]}  Nf7 {[%clk 0:00:57]} 33. Nd2 {[%clk 0:01:23]}  e5 {[%clk 0:00:55]} 34. g6 {[%clk 0:01:21]}  Nd6 {[%clk 0:00:53]} 35. Bc5 {[%clk 0:01:19]}  Nb7 {[%clk 0:00:51]} 36. Bb6 {[%clk 0:01:17]}  Be8 {[%clk 0:00:48]} 37. Nd1 {[%clk 0:01:02]}  Bxg6 {[%clk 0:00:46]} 38. Ne3 {[%clk 0:01:02]}  Bf7 {[%clk 0:00:42]} 39. Bf3 {[%clk 0:00:59]}  e4 {[%clk 0:00:42]} 40. Nxe4 {[%clk 0:00:48]}  dxe4 {[%clk 0:00:43]} 41. Bxe4 {[%clk 0:00:48]}  Be5+ {[%clk 0:00:43]} 42. Kf3 {[%clk 0:00:45]}  Nbd8 {[%clk 0:00:42]} 43. Nf5 {[%clk 0:00:42]}  Kf8 {[%clk 0:00:39]} 44. g5 {[%clk 0:00:40]}  Bh5+ {[%clk 0:00:34]} 45. Ke3 {[%clk 0:00:38]}  Ke8 {[%clk 0:00:30]} 46. Bd5 {[%clk 0:00:34]}  Ne7 {[%clk 0:00:29]} 47. Nxe7 {[%clk 0:00:33]}  Kxe7 {[%clk 0:00:29]} 48. Ke4 {[%clk 0:00:32]}  Bg7 {[%clk 0:00:23]} 49. Kf5 {[%clk 0:00:30]}  Nf7 {[%clk 0:00:23]} 50. Bc5+ {[%clk 0:00:27]}  Nd6+ {[%clk 0:00:22]} 51. Kf4 {[%clk 0:00:25]}  Kd7 {[%clk 0:00:22]} 52. b4 {[%clk 0:00:22]}  Bg6 {[%clk 0:00:20]} 53. Bxd6 {[%clk 0:00:20]}  Kxd6 {[%clk 0:00:19]} 54. Bb7 {[%clk 0:00:20]}  Be5+ {[%clk 0:00:18]} 55. Kg4 {[%clk 0:00:19]}  Bc3 {[%clk 0:00:17]} 56. Bxa6 {[%clk 0:00:19]}  Kc6 {[%clk 0:00:18]} 57. a3 {[%clk 0:00:18]}  Bb2 {[%clk 0:00:17]} 58. Bc8 {[%clk 0:00:18]}  Bxa3 {[%clk 0:00:16]} 59. Kf4 {[%clk 0:00:17]}  Bxb4 {[%clk 0:00:16]} 60. Ke5 {[%clk 0:00:18]}  Bc3+ {[%clk 0:00:16]} 61. Ke6 {[%clk 0:00:16]}  b4 {[%clk 0:00:15]} 62. Bd7+ {[%clk 0:00:16]}  Kc5 {[%clk 0:00:15]} 63. Ba4 {[%clk 0:00:16]}  Kc4 {[%clk 0:00:15]} 64. Bc6 {[%clk 0:00:14]}  Kd4 {[%clk 0:00:09]} 65. Ba4 {[%clk 0:00:12]}  Kc4 {[%clk 0:00:08]} 66. Bc6 {[%clk 0:00:10]}  b3 {[%clk 0:00:08]} 67. Bd5+ {[%clk 0:00:11]}  Kb4 {[%clk 0:00:08]} 68. Bxb3 {[%clk 0:00:07]}  Kxb3 {[%clk 0:00:09]} 69. Ke7 {[%clk 0:00:08]}  Kc4 {[%clk 0:00:09]} 70. Kf8 {[%clk 0:00:08]}  Kd5 {[%clk 0:00:09]} 71. Kg8 {[%clk 0:00:07]}  Ke5 {[%clk 0:00:09]} 72. Kg7 {[%clk 0:00:08]}  Kf5+ {[%clk 0:00:09]} 73. Kh6 {[%clk 0:00:08]}  Bd2 {[%clk 0:00:08]} 74. Kg7 {[%clk 0:00:08]}  Bxg5 {[%clk 0:00:08]} 75. Kf8 {[%clk 0:00:09]}  Kf6 {[%clk 0:00:07]} 76. Kg8 {[%clk 0:00:09]}  Bh6 {[%clk 0:00:05]} 77. Kh8 {[%clk 0:00:09]}  Bf7 {[%clk 0:00:04]} 78. Kh7 {[%clk 0:00:09]}  Be3 {[%clk 0:00:05]} 79. Kh8 {[%clk 0:00:09]}  Ke7 {[%clk 0:00:06]} 80. Kg7 {[%clk 0:00:09]}  Bd4+ {[%clk 0:00:06]} 81. Kh6 {[%clk 0:00:09]}  Kf6 {[%clk 0:00:06]} 82. Kh7 {[%clk 0:00:10]}  Bg6+ {[%clk 0:00:06]} 83. Kg8 {[%clk 0:00:10]}  Be4 {[%clk 0:00:06]} 84. Kf8 {[%clk 0:00:10]}  Bc6 {[%clk 0:00:06]} 85. Kg8 {[%clk 0:00:10]}  Bc5 {[%clk 0:00:06]} 86. Kh7 {[%clk 0:00:10]}  Bf8 {[%clk 0:00:06]} 87. Kg8 {[%clk 0:00:10]}  Bd6 {[%clk 0:00:06]} 88. Kh7 {[%clk 0:00:10]}  Bf4 {[%clk 0:00:06]} 89. Kg8 {[%clk 0:00:10]}  Kg6 {[%clk 0:00:06]} 90. Kf8 {[%clk 0:00:10]}  Bd6+ {[%clk 0:00:06]} 91. Kg8 {[%clk 0:00:10]}  Bd5+ {[%clk 0:00:06]} 92. Kh8 {[%clk 0:00:10]}  Be5# {[%clk 0:00:07]} 0-1


[Site "https://www.chess.com"]

[Event "Titled Tuesday Blitz January 04 2022"]
[White "Coto Mederos, Michel"]
[Black "Nakamura, Hikaru"]
[WhiteFideId "3508528"]
[BlackFideId "2016192"]
[WhiteElo "2427"]
[BlackElo "2850"]
[Result "0-1"]
[Round "04"]
[TimeControl "180+1"]
[Date "2022.01.04"]
[WhiteClock "0:00:04"]
[BlackClock "0:00:28"]

1. c4 {[%clk 0:02:58]}  e5 {[%clk 0:02:59]} 2. Nc3 {[%clk 0:02:58]}  Nf6 {[%clk 0:02:58]} 3. Nf3 {[%clk 0:02:58]}  Nc6 {[%clk 0:02:58]} 4. e4 {[%clk 0:02:57]}  Bb4 {[%clk 0:02:51]} 5. d3 {[%clk 0:02:56]}  h6 {[%clk 0:02:49]} 6. a3 {[%clk 0:02:54]}  Bxc3+ {[%clk 0:02:49]} 7. bxc3 {[%clk 0:02:54]}  d6 {[%clk 0:02:50]} 8. Be2 {[%clk 0:02:54]}  O-O {[%clk 0:02:49]} 9. O-O {[%clk 0:02:54]}  Nh7 {[%clk 0:02:46]} 10. Be3 {[%clk 0:02:33]}  f5 {[%clk 0:02:40]} 11. exf5 {[%clk 0:02:34]}  Bxf5 {[%clk 0:02:38]} 12. Ne1 {[%clk 0:02:23]}  Qe7 {[%clk 0:02:33]} 13. Rb1 {[%clk 0:02:17]}  b6 {[%clk 0:02:26]} 14. Qd2 {[%clk 0:02:02]}  Rae8 {[%clk 0:02:20]} 15. Nc2 {[%clk 0:01:57]}  Nd8 {[%clk 0:02:02]} 16. Rbe1 {[%clk 0:01:52]}  Ne6 {[%clk 0:02:01]} 17. Nb4 {[%clk 0:01:35]}  Qf7 {[%clk 0:01:54]} 18. Bd1 {[%clk 0:01:17]}  Nf6 {[%clk 0:01:49]} 19. Nd5 {[%clk 0:01:14]}  Qg6 {[%clk 0:01:44]} 20. Bc2 {[%clk 0:01:02]}  Nxd5 {[%clk 0:01:18]} 21. cxd5 {[%clk 0:01:00]}  Ng5 {[%clk 0:01:18]} 22. Bxg5 {[%clk 0:00:51]}  hxg5 {[%clk 0:01:19]} 23. Re3 {[%clk 0:00:48]}  g4 {[%clk 0:01:19]} 24. Ba4 {[%clk 0:00:37]}  Re7 {[%clk 0:01:19]} 25. d4 {[%clk 0:00:37]}  Qh6 {[%clk 0:01:05]} 26. Qe2 {[%clk 0:00:22]}  Qf6 {[%clk 0:00:58]} 27. dxe5 {[%clk 0:00:20]}  dxe5 {[%clk 0:00:52]} 28. Re1 {[%clk 0:00:19]}  Bg6 {[%clk 0:00:48]} 29. f3 {[%clk 0:00:15]}  gxf3 {[%clk 0:00:43]} 30. Rxf3 {[%clk 0:00:16]}  Qd6 {[%clk 0:00:43]} 31. Rxf8+ {[%clk 0:00:16]}  Kxf8 {[%clk 0:00:44]} 32. Qf2+ {[%clk 0:00:13]}  Kg8 {[%clk 0:00:43]} 33. c4 {[%clk 0:00:11]}  Qxa3 {[%clk 0:00:42]} 34. Bc6 {[%clk 0:00:11]}  Rf7 {[%clk 0:00:41]} 35. Qe2 {[%clk 0:00:09]}  Qc5+ {[%clk 0:00:40]} 36. Kh1 {[%clk 0:00:10]}  e4 {[%clk 0:00:34]} 37. Be8 {[%clk 0:00:09]}  Rf2 {[%clk 0:00:29]} 38. Qg4 {[%clk 0:00:06]}  Bxe8 {[%clk 0:00:29]} 39. Qxe4 {[%clk 0:00:06]}  Bf7 {[%clk 0:00:28]} 40. Qe5 {[%clk 0:00:04]} 0-1


[Site "https://www.chess.com"]

[Event "Titled Tuesday Blitz January 04 2022"]
[White "Deac, Bogdan-Daniel"]
[Black "Christiansen, Johan-Sebastian"]
[WhiteFideId "1226380"]
[BlackFideId "1512668"]
[WhiteElo "2646"]
[BlackElo "2513"]
[Result "1-0"]
[Round "04"]
[TimeControl "180+1"]
[Date "2022.01.04"]
[WhiteClock "0:00:06"]
[BlackClock "0:00:03"]

1. e4 {[%clk 0:03:00]}  e5 {[%clk 0:02:59]} 2. Nf3 {[%clk 0:03:00]}  Nc6 {[%clk 0:02:59]} 3. d4 {[%clk 0:03:00]}  exd4 {[%clk 0:02:59]} 4. Nxd4 {[%clk 0:03:01]}  Nf6 {[%clk 0:02:58]} 5. Nxc6 {[%clk 0:03:01]}  bxc6 {[%clk 0:02:58]} 6. e5 {[%clk 0:03:01]}  Qe7 {[%clk 0:02:58]} 7. Qe2 {[%clk 0:03:02]}  Nd5 {[%clk 0:02:59]} 8. h4 {[%clk 0:03:02]}  a5 {[%clk 0:02:57]} 9. Nd2 {[%clk 0:03:00]}  a4 {[%clk 0:02:42]} 10. c4 {[%clk 0:02:20]}  Nb6 {[%clk 0:02:42]} 11. Qe4 {[%clk 0:02:10]}  Qe6 {[%clk 0:02:40]} 12. Bd3 {[%clk 0:01:58]}  d5 {[%clk 0:02:26]} 13. exd6 {[%clk 0:01:55]}  cxd6 {[%clk 0:02:25]} 14. O-O {[%clk 0:01:52]}  Qxe4 {[%clk 0:02:21]} 15. Nxe4 {[%clk 0:01:30]}  Be7 {[%clk 0:02:11]} 16. Re1 {[%clk 0:01:24]}  Be6 {[%clk 0:01:53]} 17. Bf4 {[%clk 0:01:09]}  d5 {[%clk 0:01:39]} 18. cxd5 {[%clk 0:00:43]}  Nxd5 {[%clk 0:01:40]} 19. Bg5 {[%clk 0:00:31]}  Rb8 {[%clk 0:01:31]} 20. Bc2 {[%clk 0:00:22]}  h6 {[%clk 0:00:51]} 21. Bxe7 {[%clk 0:00:20]}  Kxe7 {[%clk 0:00:52]} 22. Bxa4 {[%clk 0:00:19]}  Rxb2 {[%clk 0:00:52]} 23. Bxc6 {[%clk 0:00:12]}  Nb4 {[%clk 0:00:52]} 24. Ba4 {[%clk 0:00:12]}  Rxa2 {[%clk 0:00:20]} 25. Rxa2 {[%clk 0:00:10]}  Nxa2 {[%clk 0:00:21]} 26. Nc5 {[%clk 0:00:10]}  Ra8 {[%clk 0:00:05]} 27. Bb3 {[%clk 0:00:09]}  Nc3 {[%clk 0:00:03]} 28. Nxe6 {[%clk 0:00:09]}  fxe6 {[%clk 0:00:03]} 29. Rxe6+ {[%clk 0:00:10]}  Kf8 {[%clk 0:00:03]} 30. g3 {[%clk 0:00:10]}  Nb5 {[%clk 0:00:04]} 31. Re4 {[%clk 0:00:09]}  Nd6 {[%clk 0:00:04]} 32. Rf4+ {[%clk 0:00:09]}  Ke7 {[%clk 0:00:04]} 33. Kg2 {[%clk 0:00:09]}  Rb8 {[%clk 0:00:05]} 34. Bd5 {[%clk 0:00:09]}  Rb2 {[%clk 0:00:06]} 35. Rg4 {[%clk 0:00:08]}  Rd2 {[%clk 0:00:05]} 36. Bf3 {[%clk 0:00:07]}  Kf6 {[%clk 0:00:05]} 37. h5 {[%clk 0:00:07]}  Nf5 {[%clk 0:00:04]} 38. Rg6+ {[%clk 0:00:07]}  Ke7 {[%clk 0:00:04]} 39. Be4 {[%clk 0:00:07]}  Ne3+ {[%clk 0:00:03]} 40. Kf3 {[%clk 0:00:06]}  Nd1 {[%clk 0:00:03]} 41. Rxg7+ {[%clk 0:00:04]}  Kf8 {[%clk 0:00:03]} 42. Rh7 {[%clk 0:00:04]}  Rxf2+ {[%clk 0:00:03]} 43. Kg4 {[%clk 0:00:04]}  Ne3+ {[%clk 0:00:04]} 44. Kh3 {[%clk 0:00:04]}  Nf1 {[%clk 0:00:03]} 45. Bg6 {[%clk 0:00:03]}  Rh2+ {[%clk 0:00:02]} 46. Kg4 {[%clk 0:00:03]}  Rg2 {[%clk 0:00:03]} 47. Kf3 {[%clk 0:00:04]}  Rxg3+ {[%clk 0:00:01]} 48. Kf2 {[%clk 0:00:04]}  Rxg6 {[%clk 0:00:01]} 49. hxg6 {[%clk 0:00:04]}  Nh2 {[%clk 0:00:02]} 50. Kg3 {[%clk 0:00:04]}  Nf1+ {[%clk 0:00:02]} 51. Kf4 {[%clk 0:00:04]}  Kg8 {[%clk 0:00:02]} 52. Kf5 {[%clk 0:00:04]}  Nd2 {[%clk 0:00:03]} 53. Ke5 {[%clk 0:00:04]}  Nf3+ {[%clk 0:00:03]} 54. Kf6 {[%clk 0:00:04]}  Ng5 {[%clk 0:00:02]} 55. Re7 {[%clk 0:00:04]}  Kf8 {[%clk 0:00:02]} 56. g7+ {[%clk 0:00:04]}  Kg8 {[%clk 0:00:03]} 57. Re8+ {[%clk 0:00:05]}  Kh7 {[%clk 0:00:03]} 58. Rh8# {[%clk 0:00:06]} 1-0


[Site "https://www.chess.com"]